fUSD/lending_fUSD_20240331
["ID","MTS","AMOUNT","RATE_DAILY","PERIOD"]
[321087826,1711890639558,-1240.64379315,0.00039878,4]
[321087827,1711890639567,-341.53652261,0.00039878,4]
[321087828,1711890639578,-155.0,0.00039878,4]
[321087829,1711890639588,-155.0,0.00039878,4]
[321087830,1711890639597,-11425.99915394,0.00039878,4]
[321087831,1711890639607,-2347.63404214,0.00039878,4]
[321087832,1711890639616,-155.0,0.00039879,4]
[321087833,1711890639625,-4310.29399998,0.00039879,4]
[321087834,1711890639634,-155.0,0.00039879,4]
[321087835,1711890639643,-156017.75360958,0.0003988,2]
[321087836,1711890639652,-168.98,0.00039967,2]
[321087837,1711890639662,-10808.9602961,0.0003999,2]
[321087838,1711890639672,-156.247907,0.00040158,2]
[321087839,1711890639681,-338.43,0.00040193,2]
[321087840,1711890639691,-550.0,0.00041,3]
[321087841,1711890639700,-179.0,0.00041096,2]
[321087842,1711890639709,-4335.98406019,0.000411,2]
[321087843,1711890639718,-156.247907,0.00041121,2]
[321087844,1711890639727,-5034.2619,0.00041166,2]
[321087845,1711890639736,-1000.0,0.00041503,2]
[321087846,1711890639745,-326.03616144,0.00041847,10]
[321087847,1711890639755,-104062.03869886,0.00041865,4]
[321087848,1711890639765,-150.81141433,0.00041905,2]
[321087849,1711890639775,-281.1,0.00041947,30]
[321087850,1711890639784,-540.86955247,0.00041949,5]
[321087851,1711890639793,-1909.91023401,0.00041949,5]
[321087852,1711890639804,-672.62010505,0.00041949,10]
[321087853,1711890639814,-939.93595278,0.00041949,5]
[321087854,1711890639823,-2134.51945293,0.00041949,10]
[321087855,1711890639832,-570.01858583,0.00041949,5]
[321087856,1711890639841,-824.57231804,0.00041949,10]
[321087857,1711890639850,-5846.60824764,0.00041949,2]
[321087858,1711890639859,-1864.99453782,0.00041949,2]
[321087859,1711890639868,-643.0,0.00041949,2]
[321087860,1711890639878,-941.57293959,0.00041949,2]
[321087861,1711890639887,-9032.31966584,0.00041949,2]
[321087862,1711890639896,-556.14432193,0.00041949,2]
[321087863,1711890639905,-1783.91680961,0.00041949,2]
[321087864,1711890639914,-169.46816586,0.00041949,2]
[321087865,1711890639924,-6621.64013298,0.00041949,2]
[321087866,1711890639933,-550.0,0.00041949,2]
[321087867,1711890639942,-978.46846485,0.00041949,2]
[321087868,1711890639951,-501.25808919,0.00041949,2]
[321087869,1711890639960,-500.0,0.00041949,2]
[321087871,1711890639969,-2540.7614919,0.00041949,2]
[321087873,1711890639978,-6000.0,0.00041949,2]
[321087874,1711890639987,-944.61087167,0.00041949,4]
[321087875,1711890639996,-1003.20879303,0.00041949,2]
[321087876,1711890640005,-546.97179548,0.00041949,2]
[321087877,1711890640014,-150.0,0.00041949,2]
[321087878,1711890640024,-634.3584294,0.00041949,2]
[321087879,1711890640034,-608.43470572,0.00041949,2]
[321087880,1711890640043,-233.99300355,0.00041949,5]
[321087881,1711890640052,-208.62400116,0.00041949,2]
[321087882,1711890640061,-436.46975996,0.00041949,2]
[321087883,1711890640070,-1036.29166687,0.00041949,2]
[321087884,1711890640079,-2500.0,0.00041949,2]
[321087885,1711890640088,-562.78055981,0.00041949,2]
[321087886,1711890640097,-2311.81680079,0.00041949,2]
[321087887,1711890640106,-1679.65547184,0.00041949,2]
[321087888,1711890640115,-233.80346046,0.00041949,2]
[321087889,1711890640125,-1596.33824723,0.00041949,2]
[321087890,1711890640133,-1065.7852371,0.00041949,7]
[321087891,1711890640143,-523.54471295,0.00041949,2]
[321087892,1711890640153,-886.3753014,0.00041949,2]
[321087893,1711890640162,-9258.00764253,0.00041949,2]
[321087894,1711890640171,-467.77328392,0.00041949,2]
[321087895,1711890640180,-384.4238418,0.00041949,2]
[321087896,1711890640189,-240.08105957,0.00041949,2]
[321087897,1711890640199,-316.43398412,0.00041949,2]
[321087898,1711890640208,-1763.48197311,0.00041949,2]
[321087899,1711890640217,-1374.98423013,0.00041949,10]
[321087900,1711890640226,-532.03852694,0.00041949,2]
[321087901,1711890640236,-4898.13681948,0.00041949,2]
[321087902,1711890640245,-353.91956168,0.00041949,2]
[321087903,1711890640254,-591.63747715,0.00041949,2]
[321087904,1711890640263,-3032.09827416,0.00041949,7]
[321087905,1711890640273,-192.28621157,0.00041949,7]
[321087906,1711890640282,-1784.70607232,0.00041949,2]
[321087907,1711890640292,-337.06952388,0.00041949,2]
[321087908,1711890640301,-1051.66325488,0.00041949,7]
[321087909,1711890640312,-587.82205506,0.00041949,20]
[321087910,1711890640321,-5028.66795686,0.00041949,2]
[321087911,1711890640330,-204.69310846,0.00041949,5]
[321087912,1711890640340,-1003.6667417,0.00041949,2]
[321087913,1711890640349,-213.89584315,0.00041949,2]
[321087914,1711890640358,-636.29558818,0.00041949,2]
[321087915,1711890640368,-1002.79407176,0.00041949,2]
[321087916,1711890640377,-500.0,0.00041949,2]
[321087917,1711890640386,-500.0,0.00041949,2]
[321087918,1711890640395,-500.0,0.00041949,8]
[321087919,1711890640404,-561.82572548,0.00042,2]
[321087920,1711890640414,-1043.4,0.00042,120]
[321087921,1711890640423,-19322.254976,0.0004204,2]
[321087922,1711890640433,-156.247907,0.00042084,2]
[321087923,1711890640443,-155.73,0.000421,4]
[321087924,1711890640452,-155.73,0.000421,4]
[321087925,1711890640462,-155.73,0.000421,4]
[321087926,1711890640471,-155.73,0.000421,4]
[321087927,1711890640481,-155.73,0.000421,4]
[321087928,1711890640492,-2233.22,0.000421,4]
[321087929,1711890640502,-2233.22,0.000421,4]
[321087930,1711890640512,-2233.22,0.000421,4]
[321087931,1711890640521,-2233.22,0.000421,4]
[321087932,1711890640530,-2233.22,0.000421,4]
[321087933,1711890640540,-2233.22,0.000421,4]
[321087934,1711890640550,-2233.22,0.000421,4]
[321087935,1711890640559,-2233.22,0.000421,4]
[321087936,1711890640570,-2233.22,0.000421,4]
[321087937,1711890640580,-2233.22,0.000421,4]
[321087938,1711890640590,-2233.22,0.000421,4]
[321087939,1711890640599,-2233.22,0.000421,4]
[321087940,1711890640608,-2233.22,0.000421,4]
[321087941,1711890640619,-2233.22,0.000421,4]
[321087942,1711890640628,-2233.22,0.000421,4]
[321087943,1711890640637,-2233.22,0.000421,4]
[321087944,1711890640647,-2233.22,0.000421,4]
[321087945,1711890640658,-2233.22,0.000421,4]
[321087946,1711890640668,-2233.22,0.000421,4]
[321087947,1711890640678,-2233.22,0.000421,4]
[321087948,1711890640688,-180.0,0.00042115,2]
[321087949,1711890640697,-500.0,0.00042116,6]
[321087950,1711890640707,-500.0,0.00042116,6]
[321087951,1711890640716,-500.0,0.00042116,6]
[321087952,1711890640725,-500.0,0.00042116,6]
[321087953,1711890640734,-500.0,0.00042116,6]
[321087954,1711890640743,-500.0,0.00042116,6]
[321087955,1711890640753,-338.43,0.00042457,2]
[321087956,1711890640762,-2408.91199929,0.00042814,2]
[321087957,1711890640771,-83000.0,0.00043,10]
[321087958,1711890640780,-600.0,0.00043,3]
[321087959,1711890640789,-156.247907,0.00043047,2]
[321087960,1711890640799,-500.0,0.00043999,8]
[321087961,1711890640809,-12625.0,0.00044,2]
[321087962,1711890640818,-15989.39886003,0.00044,2]
[321087963,1711890640827,-300.0,0.00044,60]
[321087964,1711890640837,-150.0,0.00044,44]
[321087965,1711890640846,-156.247907,0.0004401,2]
[321087966,1711890640855,-1148.07590352,0.00044444,7]
[321087967,1711890640864,-338.43,0.00044721,2]
[321087968,1711890640872,-9007.37447924,0.00044842,2]
[321087969,1711890640881,-2098.15590834,0.000449,20]
[321087970,1711890640890,-326.03616138,0.00044945,12]
[321087971,1711890640899,-156.247907,0.00044974,2]
[321087972,1711890640908,-5165.17864552,0.0004498,2]
[321087973,1711890640917,-5000.0,0.00044986,4]
[321087974,1711890640926,-229.29651581,0.00045,110]
[321087975,1711890640935,-1836.07550072,0.00045,120]
[321087976,1711890640944,-150110.02360387,0.00045,4]
[321087977,1711890640953,-1500.0,0.00045,4]
[321087978,1711890640963,-70797.64680079,0.00045,2]
[321087979,1711890640972,-328.07527769,0.00045,4]
[321087980,1711890640980,-130580.46195773,0.00045,2]
[321087981,1711890640989,-650.0,0.00045,3]
[321087982,1711890640998,-5580.68446131,0.00045,30]
[321087983,1711890641007,-155.73,0.000452,5]
[321087984,1711890641016,-155.73,0.000452,5]
[321087985,1711890641025,-155.73,0.000452,5]
[321087986,1711890641033,-155.73,0.000452,5]
[321087987,1711890641042,-155.73,0.000452,5]
[321087988,1711890641053,-155.73,0.000452,5]
[321087989,1711890641062,-155.73,0.000452,5]
[321087990,1711890641071,-155.73,0.000452,5]
[321087991,1711890641080,-155.73,0.000452,5]
[321087992,1711890641089,-155.73,0.000452,5]
[321087993,1711890641098,-2233.22,0.000452,5]
[321087994,1711890641107,-2233.22,0.000452,5]
[321087995,1711890641115,-2233.22,0.000452,5]
[321087996,1711890641124,-2233.22,0.000452,5]
[321087997,1711890641133,-2233.22,0.000452,5]
[321087998,1711890641142,-2233.22,0.000452,5]
[321087999,1711890641150,-2233.22,0.000452,5]
[321088000,1711890641159,-2233.22,0.000452,5]
[321088001,1711890641169,-2233.22,0.000452,5]
[321088002,1711890641178,-2233.22,0.000452,5]
[321088003,1711890641189,-2233.22,0.000452,5]
[321088004,1711890641199,-2233.22,0.000452,5]
[321088005,1711890641208,-2233.22,0.000452,5]
[321088006,1711890641217,-2233.22,0.000452,5]
[321088007,1711890641226,-2233.22,0.000452,5]
[321088008,1711890641235,-2233.22,0.000452,5]
[321088009,1711890641245,-2233.22,0.000452,5]
[321088010,1711890641256,-2233.22,0.000452,5]
[321088011,1711890641265,-2233.22,0.000452,5]
[321088012,1711890641274,-2233.22,0.000452,5]
[321088013,1711890641283,-150.0,0.000455,8]
[321088014,1711890641293,-2408.91199929,0.00045761,2]
[321088015,1711890641302,-156.247907,0.00045937,2]
[321088016,1711890641311,-3200.0,0.00046,4]
[321088017,1711890641321,-150.0,0.00046,8]
[321088018,1711890641330,-1000.0,0.00046115,2]
[321088019,1711890641339,-150.0,0.000465,8]
[321088020,1711890641348,-998.54,0.000468,2]
[321088021,1711890641357,-2098.15590823,0.00046864,22]
[321088022,1711890641367,-156.247907,0.000469,2]
[321088023,1711890641377,-338.43,0.00046985,2]
[321088024,1711890641386,-700.0,0.00047,3]
[321088025,1711890641396,-150.0,0.00047,9]
[321088026,1711890641405,-5013.0199854,0.00047,15]
[321088027,1711890641414,-507.57514877,0.0004715,30]
[321088028,1711890641424,-150.0,0.000475,9]
[321088029,1711890641433,-144979.8388,0.0004785,2]
[321088030,1711890641442,-150.0,0.00048,9]
[321088031,1711890641451,-326.03616138,0.00048044,13]
[321088032,1711890641460,-155.73,0.000483,6]
[321088033,1711890641626,-155.73,0.000483,6]
[321088034,1711890641636,-155.73,0.000483,6]
[321088035,1711890641645,-155.73,0.000483,6]
[321088036,1711890641654,-155.73,0.000483,6]
[321088037,1711890641664,-155.73,0.000483,6]
[321088038,1711890641673,-155.73,0.000483,6]
[321088039,1711890641683,-155.73,0.000483,6]
[321088040,1711890641691,-155.73,0.000483,6]
[321088041,1711890641701,-155.73,0.000483,6]
[321088042,1711890641710,-2233.22,0.000483,6]
[321088043,1711890641720,-2233.22,0.000483,6]
[321088044,1711890641729,-2233.22,0.000483,6]
[321088045,1711890641738,-2233.22,0.000483,6]
[321088046,1711890641748,-2233.22,0.000483,6]
[321088047,1711890641757,-2233.22,0.000483,6]
[321088048,1711890641767,-2233.22,0.000483,6]
[321088049,1711890641776,-2233.22,0.000483,6]
[321088050,1711890641785,-2233.22,0.000483,6]
[321088051,1711890641795,-2233.22,0.000483,6]
[321088052,1711890641805,-2233.22,0.000483,6]
[321088053,1711890641814,-2233.22,0.000483,6]
[321088054,1711890641824,-2233.22,0.000483,6]
[321088055,1711890641834,-2233.22,0.000483,6]
[321088056,1711890641843,-2233.22,0.000483,6]
[321088057,1711890641852,-2233.22,0.000483,6]
[321088058,1711890641862,-2233.22,0.000483,6]
[321088059,1711890641871,-2233.22,0.000483,6]
[321088060,1711890641880,-2233.22,0.000483,6]
[321088061,1711890641889,-2233.22,0.000483,6]
[321088062,1711890641898,-75493.7460083,0.0004849,10]
[321088063,1711890641908,-150.0,0.000485,9]
[321088064,1711890641917,-998.54,0.00048535,2]
[321088065,1711890641927,-1001.0,0.000487,117]
[321088066,1711890641937,-2408.91199929,0.00048708,2]
[321088067,1711890641946,-1497.61,0.00048741,120]
[321088068,1711890641955,-998.54,0.000488,2]
[321088069,1711890641965,-308.78,0.000488,2]
[321088070,1711890641974,-2098.15590823,0.00048827,25]
[321088071,1711890641983,-1200.0,0.00049,4]
[321088072,1711890641992,-696.13981054,0.00049,30]
[321088073,1711890642001,-150.0,0.00049,9]
[321088074,1711890642010,-338.43,0.00049249,2]
[321088075,1711890642020,-1649.81,0.00049315,60]
[321088076,1711890642030,-1000.0,0.00049315,120]
[321088077,1711890642039,-1000.0,0.00049315,120]
[321088078,1711890642049,-1000.0,0.00049315,120]
[321088079,1711890642061,-1000.0,0.00049315,120]
[321088080,1711890642072,-1000.0,0.00049315,120]
[321088081,1711890642081,-150.0,0.000495,10]
[321088082,1711890642091,-3006.13712842,0.0005,30]
[321088083,1711890642101,-3555.04572402,0.0005,10]
[321088084,1711890642110,-27063.55526501,0.0005,4]
[321088085,1711890642120,-200.0,0.0005,120]
[321088086,1711890642129,-150.0,0.0005,10]
[321088087,1711890642139,-1273.0,0.0005,8]
[321088088,1711890642148,-1649.81,0.00050136,64]
[321088089,1711890642158,-998.54,0.0005027,2]
[321088090,1711890642167,-998.54,0.00050535,2]
[321088091,1711890642177,-308.78,0.00050555,2]
[321088092,1711890642186,-1000.0,0.00050726,120]
[321088093,1711890642196,-2098.15590823,0.00050791,27]
[321088094,1711890642205,-394.8,0.00050909,120]
[321088095,1711890642214,-1649.81,0.00050958,68]
[321088096,1711890642224,-326.03616138,0.00051142,14]
[321088097,1711890642234,-1028.0,0.000513,30]
[321088098,1711890642243,-155.73,0.000514,7]
[321088099,1711890642253,-155.73,0.000514,7]
[321088100,1711890642263,-155.73,0.000514,7]
[321088101,1711890642273,-155.73,0.000514,7]
[321088103,1711890642282,-155.73,0.000514,7]
[321088104,1711890642291,-155.73,0.000514,7]
[321088106,1711890642300,-155.73,0.000514,7]
[321088108,1711890642309,-155.73,0.000514,7]
[321088110,1711890642318,-155.73,0.000514,7]
[321088112,1711890642327,-155.73,0.000514,7]
[321088114,1711890642336,-2233.22,0.000514,7]
[321088116,1711890642346,-2233.22,0.000514,7]
[321088117,1711890642355,-2233.22,0.000514,7]
[321088118,1711890642365,-2233.22,0.000514,7]
[321088119,1711890642374,-2233.22,0.000514,7]
[321088120,1711890642383,-2233.22,0.000514,7]
[321088121,1711890642393,-2233.22,0.000514,7]
[321088122,1711890642402,-2233.22,0.000514,7]
[321088123,1711890642411,-2233.22,0.000514,7]
[321088124,1711890642420,-2233.22,0.000514,7]
[321088125,1711890642431,-2233.22,0.000514,7]
[321088126,1711890642440,-2233.22,0.000514,7]
[321088127,1711890642449,-2233.22,0.000514,7]
[321088128,1711890642458,-2233.22,0.000514,7]
[321088129,1711890642467,-2233.22,0.000514,7]
[321088130,1711890642476,-2233.22,0.000514,7]
[321088131,1711890642486,-2233.22,0.000514,7]
[321088132,1711890642501,-2233.22,0.000514,7]
[321088133,1711890642510,-2233.22,0.000514,7]
[321088134,1711890642519,-2233.22,0.000514,7]
[321088135,1711890642529,-338.43,0.00051513,2]
[321088136,1711890642542,-2408.91199929,0.00051655,2]
[321088137,1711890642552,-154.69,0.00051726,120]
[321088138,1711890642562,-1649.81,0.0005178,72]
[321088139,1711890642572,-998.54,0.00052005,2]
[321088140,1711890642581,-155.0,0.00052049,4]
[321088141,1711890642590,-429.08201282,0.00052051,28]
[321088142,1711890642600,-9499.59135386,0.00052053,4]
[321088143,1711890642610,-838.06132381,0.00052053,2]
[321088144,1711890642619,-3147.32686054,0.00052053,120]
[321088145,1711890642629,-10454.56230624,0.00052053,5]
[321088146,1711890642638,-998.54,0.0005227,2]
[321088147,1711890642648,-308.78,0.0005231,2]
[321088148,1711890642657,-382.0,0.00052406,30]
[321088149,1711890642666,-152.0,0.0005248,3]
[321088150,1711890642676,-1649.81,0.00052602,120]
[321088151,1711890642686,-2098.15590823,0.00052755,30]
[321088152,1711890642696,-382.0,0.00052946,30]
[321088153,1711890642705,-15596.03506731,0.00053,120]
[321088154,1711890642715,-708.0,0.00053247,2]
[321088155,1711890642724,-1649.81,0.00053424,120]
[321088156,1711890642734,-569.30305,0.0005346,66]
[321088157,1711890642743,-382.0,0.00053487,30]
[321088158,1711890642752,-569.30306,0.0005368,67]
[321088159,1711890642762,-189.31965973,0.00053686,120]
[321088160,1711890642771,-241.40104497,0.0005369,30]
[321088161,1711890642780,-189.31965973,0.00053697,120]
[321088162,1711890642790,-241.40104497,0.00053698,30]
[321088163,1711890642799,-189.31965973,0.00053703,120]
[321088164,1711890642809,-241.40104497,0.00053711,30]
[321088165,1711890642819,-241.40104497,0.00053716,30]
[321088166,1711890642829,-189.31965973,0.00053724,120]
[321088167,1711890642838,-189.31965973,0.00053724,120]
[321088168,1711890642847,-241.40104497,0.00053727,30]
[321088169,1711890642857,-998.54,0.0005374,2]
[321088170,1711890642866,-387.14158954,0.0005375,30]
[321088171,1711890642875,-338.43,0.00053777,2]
[321088172,1711890642884,-822.8895934,0.0005399,2]
[321088173,1711890642894,-2168.36692202,0.00053998,4]
[321088174,1711890642903,-318.50123288,0.00053998,30]
[321088175,1711890642912,-201.99825311,0.00053999,120]
[321088176,1711890642921,-833.20159115,0.00053999,7]
[321088177,1711890642930,-241273.54128584,0.00054,2]
[321088179,1711890642940,-300.0,0.00054,120]
[321088180,1711890642949,-1000.0,0.00054,120]
[321088181,1711890642958,-18012.12859455,0.00054,2]
[321088182,1711890642967,-16000.0,0.00054,54]
[321088183,1711890642977,-1028.0,0.00054,30]
[321088184,1711890642986,-998.54,0.00054005,2]
[321088185,1711890642995,-1985.97471485,0.00054027,30]
[321088186,1711890643004,-382.0,0.00054027,30]
[321088187,1711890643013,-188.9466139,0.00054027,30]
[321088188,1711890643023,-582.13781828,0.00054027,30]
[321088189,1711890643032,-209.95555556,0.00054027,120]
[321088190,1711890643041,-1000.0,0.00054057,120]
[321088192,1711890643050,-308.78,0.00054065,2]
[321088193,1711890643060,-151.0,0.0005411,120]
[321088194,1711890643069,-1000.0,0.00054162,120]
[321088195,1711890643078,-498.08755793,0.000542,33]
[321088196,1711890643087,-10559.06400215,0.00054219,120]
[321088197,1711890643096,-326.03616138,0.00054241,14]
[321088198,1711890643105,-1649.81,0.00054246,120]
[321088199,1711890643114,-1000.0,0.00054268,120]
[321088201,1711890643124,-569.30305,0.000543,69]
[321088202,1711890643133,-2203.3,0.00054304,117]
[321088203,1711890643143,-6920.17337439,0.0005435,2]
[321088204,1711890643152,-1000.0,0.00054373,120]
[321088205,1711890643161,-838.43157224,0.000544,110]
[321088206,1711890643170,-15000.0,0.0005444,16]
[321088207,1711890643180,-1000.0,0.00054478,120]
[321088208,1711890643189,-14268.81512849,0.0005448,30]
[321088209,1711890643199,-155.73,0.000545,8]
[321088210,1711890643208,-155.73,0.000545,8]
[321088211,1711890643217,-155.73,0.000545,8]
[321088212,1711890643226,-155.73,0.000545,8]
[321088213,1711890643235,-155.73,0.000545,8]
[321088214,1711890643245,-2233.22,0.000545,8]
[321088215,1711890643256,-2233.22,0.000545,8]
[321088216,1711890643267,-2233.22,0.000545,8]
[321088217,1711890643276,-2233.22,0.000545,8]
[321088218,1711890643285,-2233.22,0.000545,8]
[321088219,1711890643298,-2233.22,0.000545,8]
[321088220,1711890643308,-2233.22,0.000545,8]
[321088221,1711890643317,-2233.22,0.000545,8]
[321088222,1711890643327,-2233.22,0.000545,8]
[321088223,1711890643336,-1818.89422123,0.000545,8]
[321088224,1711890643355,-414.32577877,0.000545,8]
[321088225,1711890643365,-673.21441644,0.000545,8]
[321088226,1711890643388,-500.0,0.00043836,18]
[321088227,1711890643398,-1309.80000001,0.000545,8]
[321088228,1711890643409,-250.20558355,0.000545,8]
[321088229,1711890643420,-2233.22,0.000545,8]
[321088230,1711890643430,-462.76078035,0.000545,8]
[321088231,1711890643616,-0.421246,0.000545,8]
[321088232,1711890643852,-1388.77,0.00040797,2]
[321088233,1711890643862,-499.99,0.00041,2]
[321088234,1711890643871,-1388.77,0.00043537,2]
[321088235,1711890643881,-1388.77,0.00046276,2]
[321088236,1711890643891,-545.78149985,0.00049315,20]
[321088237,1711890643900,-1770.03797365,0.000545,8]
[321088238,1711890643909,-2233.22,0.000545,8]
[321088239,1711890643918,-736.42313715,0.000545,8]
[321088240,1711890643937,-1496.79686285,0.000545,8]
[321088241,1711890643946,-2233.22,0.000545,8]
[321088242,1711890643955,-2233.22,0.000545,8]
[321088243,1711890643964,-2233.22,0.000545,8]
[321088244,1711890643973,-2233.22,0.000545,8]
[321088245,1711890643982,-1562.87643656,0.000545,8]
[321088246,1711890644001,-154.0,0.00037865,120]
[321088247,1711890644010,-670.34356344,0.000545,8]
[321088248,1711890644019,-150.0,0.0005451,30]
[321088249,1711890644028,-382.0,0.00054567,30]
[321088250,1711890644037,-500.0,0.0005457,120]
[321088251,1711890644047,-1000.0,0.00054584,120]
[321088252,1711890644056,-624.75420764,0.00054584,36]
[321088253,1711890644067,-1994.37715878,0.00054584,36]
[321088255,1711890645734,-1000.0,0.00040796,4]
[321088256,1711890645743,-6958.01731671,0.00042814,2]
[321088257,1711890645753,-121845.09887095,0.00054584,36]
[321088258,1711890645762,-46900.03311149,0.00054584,31]
[321088259,1711890645772,-208.03707595,0.000546,7]
[321088260,1711890645780,-906.54112024,0.000546,30]
[321088261,1711890645790,-2408.91199929,0.00054602,2]
[321088262,1711890645799,-209.95555556,0.0005463,120]
[321088263,1711890645809,-1000.0,0.00054689,120]
[321088264,1711890645819,-3346.91849278,0.000547,2]
[321088265,1711890645828,-2098.15590823,0.00054718,32]
[321088266,1711890645837,-150.5,0.00054765,15]
[321088267,1711890645847,-150.5,0.00054775,15]
[321088268,1711890645856,-150.5,0.00054785,15]
[321088269,1711890645866,-165.9497165,0.00054789,30]
[321088270,1711890645875,-500.0,0.00054794,120]
[321088271,1711890645885,-504.78416849,0.00054794,120]
[321088272,1711890645894,-500.0,0.00054794,120]
[321088273,1711890645903,-511.81969974,0.00054794,120]
[321088274,1711890645912,-500.0,0.00054794,120]
[321088275,1711890645921,-500.0,0.00054794,120]
[321088276,1711890645930,-504.33735331,0.00054794,120]
[321088277,1711890645939,-504.78766624,0.00054794,120]
[321088278,1711890645948,-500.0,0.00054794,120]
[321088279,1711890645957,-500.0,0.00054794,120]
[321088280,1711890645966,-500.0,0.00054794,120]
[321088281,1711890645975,-512.25021939,0.00054794,120]
[321088282,1711890645984,-500.0,0.00054794,120]
[321088283,1711890645993,-500.0,0.00054794,120]
[321088284,1711890646003,-505.24265411,0.00054794,120]
[321088285,1711890646012,-500.0,0.00054794,120]
[321088286,1711890646021,-501.79852045,0.00054794,120]
[321088287,1711890646030,-532.76544288,0.00054794,120]
[321088288,1711890646039,-500.0,0.00054794,120]
[321088289,1711890646048,-500.0,0.00054794,120]
[321088290,1711890646057,-500.0,0.00054794,120]
[321088291,1711890646066,-519.11428301,0.00054794,120]
[321088292,1711890646075,-500.0,0.00054794,120]
[321088293,1711890646084,-500.0,0.00054794,120]
[321088294,1711890646094,-500.0,0.00054794,120]
[321088295,1711890646103,-500.0,0.00054794,120]
[321088296,1711890646112,-500.0,0.00054794,120]
[321088297,1711890646121,-500.0,0.00054794,120]
[321088298,1711890646130,-500.0,0.00054794,120]
[321088299,1711890646139,-506.30660298,0.00054794,120]
[321088300,1711890646148,-500.0,0.00054794,120]
[321088301,1711890646159,-500.0,0.00054794,120]
[321088302,1711890646168,-515.74133916,0.00054794,120]
[321088303,1711890646177,-500.0,0.00054794,120]
[321088304,1711890646187,-380.68775378,0.00054794,120]
[321088305,1711890646196,-500.0,0.00054794,120]
[321088306,1711890646205,-500.0,0.00054794,120]
[321088307,1711890646214,-500.0,0.00054794,120]
[321088308,1711890646223,-500.0,0.00054794,120]
[321088309,1711890646232,-507.09024354,0.00054794,120]
[321088310,1711890646242,-500.0,0.00054794,120]
[321088311,1711890646252,-542.78484694,0.00054794,120]
[321088312,1711890646262,-500.0,0.00054794,120]
[321088313,1711890646271,-503.60097052,0.00054794,120]
[321088314,1711890646280,-505.57647507,0.00054794,120]
[321088315,1711890646289,-500.0,0.00054794,120]
[321088316,1711890646298,-500.0,0.00054794,120]
[321088317,1711890646307,-666.0,0.00054794,120]
[321088318,1711890646319,-501.68777592,0.00054794,120]
[321088319,1711890646330,-500.0,0.00054794,120]
[321088320,1711890646339,-500.0,0.00054794,120]
[321088321,1711890646348,-500.0,0.00054794,120]
[321088322,1711890646358,-502.72493163,0.00054794,120]
[321088323,1711890646368,-500.0,0.00054794,120]
[321088324,1711890646377,-500.0,0.00054794,120]
[321088325,1711890646386,-500.0,0.00054794,120]
[321088326,1711890646395,-500.0,0.00054794,120]
[321088327,1711890646404,-500.0,0.00054794,120]
[321088328,1711890646413,-521.04503919,0.00054794,120]
[321088329,1711890646422,-500.0,0.00054794,120]
[321088330,1711890646432,-500.0,0.00054794,2]
[321088331,1711890646441,-500.15004231,0.00054794,120]
[321088332,1711890646450,-500.0,0.00054794,120]
[321088333,1711890646459,-500.0,0.00054794,120]
[321088334,1711890646468,-500.0,0.00054794,120]
[321088335,1711890646477,-252.64813884,0.00054794,120]
[321088336,1711890646486,-500.0,0.00054794,120]
[321088337,1711890646495,-500.0,0.00054794,120]
[321088338,1711890646504,-509.75779191,0.00054794,120]